Cogmind - Beta 15 @@@ ROGUE MODE // 2025.09.05 @ 18:28:47 Player: odium reigns Result: Destroyed by G-47 Trooper with Particle Gun Performance ------------- Evolutions (0) 0 Regions Visited (1) 200 Robots Destroyed (21) 105 Value Destroyed (334) 334 Prototype IDs (2) 40 Alien Tech Used (0) 0 Bonus (0) 0 TOTAL SCORE: 679 Bonus ------- None Cogmind --------- Core Integrity 0/250 Matter 266/300 Energy 79/100 System Corruption 0% Temperature Danger (462) Movement Core (200) Ox3 Location -10/Materials Parts ------- > --- POWER (1) -------- (None) > --- PROPULSION (2) --- (None) > --- UTILITY (2) ------ Medium Storage Unit Sensor Array > --- WEAPON (2) ------- (None) > --- INVENTORY (10) --- Small Storage Unit Small Matter Pod (50) Medium Matter Pod (100) Weight Redist. System Signal Interpreter Signal Interpreter Transport Network Coupler Light Assault Rifle Peak State ------------ > --- POWER ------------ Light Ion Engine > --- PROPULSION ------- Aluminum Leg Aluminum Leg > --- UTILITY ---------- Medium Storage Unit Improved Terrain Scanner > --- WEAPON ----------- Light Assault Rifle Light Assault Rifle > --- INVENTORY -------- Aluminum Leg Small Storage Unit Small Matter Pod Medium Matter Pod Weight Redist. System Signal Interpreter Transport Network Coupler Particle Gun Mining Laser [Rating: 10] Favorites ----------- Power Light Ion Engine Engine Light Ion Engine Propulsion Aluminum Leg Treads Light Treads Leg Aluminum Leg Utility Small Storage Unit Device Improved Terrain Scanner Storage Small Storage Unit Weapon Light Assault Rifle Energy Gun Small Laser Ballistic Gun Light Assault Rifle Special Weapon Mining Laser Build | -11 -10 ------- Run | Yrd Mat Slots Evolved . | . . Power . | . . Propulsion . | . . Utility . | . . Weapon . | . . Parts Attached 23 | 7 16 Power 3 | 1 2 Engine 3 | 1 2 Core . | . . Reactor . | . . Propulsion 9 | 2 7 Treads 2 | 2 . Leg 7 | . 7 Wheel . | . . Hover . | . . Flight . | . . Utility 4 | 2 2 Device 2 | 1 1 Storage 2 | 1 1 Processor . | . . Hackware . | . . Protection . | . . Artifact . | . . Weapon 7 | 2 5 Energy Gun 3 | 2 1 Energy Cannon . | . . Ballistic Gun 3 | . 3 Ballistic Cannon . | . . Launcher . | . . Special Weapon 1 | . 1 Impact Weapon . | . . Slashing Weapon . | . . Piercing Weapon . | . . Special Melee Weapon . | . . Unidentified Prototypes . | . . Parts Lost 9 | . 9 Power 3 | . 3 Propulsion 3 | . 3 Utility . | . . Weapon 3 | . 3 Highest Loss Streak 7 | . 7 To Critical Strikes . | . . Average Backups 7 | 5 8 Power 1 | 1 1 Propulsion 1 | 1 1 Utility 2 | . 4 Weapon 1 | 1 1 Tool/Special . | . . Unused Backups 7 | . 7 Power 1 | . 1 Propulsion . | . . Utility 6 | . 6 Weapon . | . . Tool/Special . | . . Average Slot Usage (%) 96 | . 96 Engine 12 | . 12 Treads 2 | . 2 Leg 24 | . 24 Device 14 | . 14 Storage 14 | . 14 Energy Gun 4 | . 4 Ballistic Gun 22 | . 22 Peak Build Rating 10 | 9 10 Average Rating 7 | 7 8 On Entrance 4 | . 9 Naked Turns . | . . Heaviest Build 18 | 11 18 Greatest Support 40 | 40 40 Greatest Overweight (x) 4 | . 4 Average Overweight (x) . | . . Largest Inventory Capacity 10 | 8 10 Average Capacity 8 | 7 8 Most Carried 10 | 7 10 Average Carried 7 | 5 8 Final Capacity 10 | 8 10 Final Carried 8 | 7 8 Class Distribution -------------------- 73% | Mutant 26% | Scavenger-Mutant Dominant Class ---------------- Mutant | -10/Materials Resources | -11 -10 ----------- Run | Yrd Mat Matter Collected 571 | 357 214 Remotely . | . . Salvage Created 692 | 215 477 Parts 49 | 18 31 Haulers Intercepted 2 | . 2 Recyclers Shooed . | . . Parts Field Recycled . | . . Retrieved Matter . | . . Parts Self-Destructed . | . . Prevented . | . . Kills | -11 -10 ------- Run | Yrd Mat Combat Hostiles Destroyed 9 | . 9 Guns 9 | . 9 Classes Destroyed 7 | 3 4 Worker 3 | 2 1 Tunneler 5 | 5 . Hauler 2 | . 2 Recycler 1 | 1 . Watcher 1 | . 1 Swarmer 3 | . 3 Grunt 6 | . 6 Best Kill Streak 6 | 4 6 Combat Bots Only 4 | . 4 Max Kills in Single Turn 2 | 1 2 Gunslinging . | . . Exploded . | . . Melee . | . . Uniques/NPCs Destroyed . | . . Combat | -11 -10 -------- Run | Yrd Mat Hostile Shots Fired 123 | . 123 Missed 25 | . 25 Hits 98 | . 98 Projectile 98 | . 98 Critical Strikes 3 | . 3 Damage Taken 1210 | . 1210 Core 260 | . 260 Absorbed by Shields . | . . Core Remaining (%) 100 | 100 . Volleys Fired 91 | 20 71 Largest 2 | 2 2 Hottest 165 | 80 165 Shots Fired 171 | 40 131 Gun 169 | 40 129 Cannon . | . . Launcher . | . . Special 2 | . 2 Kinetic 113 | . 113 Thermal 58 | 40 18 Explosive . | . . Electromagnetic . | . . Robot Hit Streak 15 | 9 15 Robot Miss Streak 5 | 2 5 Penetration Max . | . . Secondary Targets 1 | . 1 Max Gunslinging Chain 1 | . 1 Shots Hit Robots 107 | 23 84 Core Hits 43 | 9 34 Critical Kills . | . . Critical Parts Destroyed 3 | . 3 Critical Strikes 4 | . 4 Burn 1 | . 1 Destroy 3 | . 3 Melee Attacks . | . . Impact . | . . Slashing . | . . Piercing . | . . Sneak Attacks . | . . Combat Hostiles . | . . Follow-up Attacks . | . . Damage Inflicted 1053 | 260 793 Guns 1053 | 260 793 Cannons . | . . Explosions . | . . Melee . | . . Ramming . | . . Kinetic 662 | . 662 Thermal 391 | 260 131 Explosive . | . . Electromagnetic . | . . Impact . | . . Slashing . | . . Piercing . | . . Highest Corruption . | . . Average Corruption . | . . Corruption Purged . | . . Corruption Blocked . | . . Overload Shots . | . . Overflow Damage . | . . Projectiles . | . . Explosions . | . . Melee . | . . Knockbacks . | . . Impact . | . . Kinetic . | . . Secondary . | . . Self-Inflicted Damage . | . . Shots . | . . Rammed . | . . Targets Rammed . | . . Kicked . | . . Crushed . | . . Highest Temperature 543 | 90 543 Average Temperature 84 | 28 120 Received Heat Transfer 723 | . 723 Effects 2 | . 2 Short Circuit 1 | . 1 Damage (minor) 1 | . 1 Siege Activations . | . . Martial Activations . | . . Shielding Activations . | . . Robots Disrupted . | . . Combat Hostiles . | . . Robots Corrupted . | . . Combat Hostiles . | . . Parts Fried . | . . Impact Corruptions . | . . Robots Melted . | . . Combat Hostiles . | . . Parts Melted 1 | 1 . Heat Transferred 946 | 575 371 Parts Sabotaged . | . . Parts Stolen . | . . Parts Stripped . | . . Power Chain Reactions . | . . Alert | -11 -10 ------- Run | Yrd Mat Maximum Alert Level . | . . Low Security (%) 100 | 100 100 Level 1 . | . . Level 2 . | . . Level 3 . | . . Level 4 . | . . Level 5 . | . . High Security . | . . Max Security . | . . Peak Influence 92 | 10 92 Initial . | . . Average 27 | 1 42 Influence Increases 302 | 40 262 Destroy 0b10 Robot/C 180 | . 180 Destroy 0b10 Robot/NC 60 | 40 20 Destroy Leader 36 | . 36 Successful Hack 10 | . 10 Disable Machine 15 | . 15 Destroy Structure 1 | . 1 Influence Decreases 302 | 40 262 Time Decay 258 | 40 218 Lost Part 44 | . 44 Squads Dispatched 1 | . 1 Investigation 1 | . 1 Extermination . | . . Reinforcement . | . . Assault . | . . Garrison . | . . Intercept . | . . Searches Triggered . | . . Construction Impeded . | . . Haulers Reinforced . | . . Active Scanning Responses . | . . Cargo Convoy Interrupts . | . . Stealth | -11 -10 --------- Run | Yrd Mat Distress Signals 1 | . 1 Communications Jammed . | . . Distress Signals . | . . Times Spotted 17 | . 17 Peak Tracking Total 5 | . 5 Tactical Retreats . | . . Traps | -11 -10 ------- Run | Yrd Mat Traps Triggered 1 | . 1 Indirectly . | . . Trap Hack Attempts . | . . Triggered . | . . Disarmed . | . . Reprogrammed . | . . Reused . | . . Traps Extracted . | . . Installed . | . . Triggered . | . . Machines | -11 -10 ---------- Run | Yrd Mat Machines Disabled 1 | . 1 Max in Single Turn 1 | . 1 Machines Repaired . | . . Machines Dismantled . | . . Machines Sabotaged . | . . Overloaded Fab Kills . | . . Hacking | -11 -10 --------- Run | Yrd Mat Machines Accessed 2 | . 2 Terminals 2 | . 2 Fabricators . | . . Repair Stations . | . . Recycling Units . | . . Scanalyzers . | . . Garrison Access . | . . Total Hacks 4 | . 4 Successful 2 | . 2 Failed 2 | . 2 Catastrophic . | . . Database Lockouts . | . . Manual . | . . Terminals 4 | . 4 Fabricators . | . . Repair Stations . | . . Recycling Units . | . . Scanalyzers . | . . Garrison Access . | . . Terminal Hacks 2 | . 2 Prototype ID Bank 1 | . 1 Zone Layout 1 | . 1 Fabricator Hacks . | . . Repair Station Hacks . | . . Recycling Unit Hacks . | . . Scanalyzer . | . . Garrison Access Hacks . | . . Unauthorized Hacks . | . . Terminals . | . . Fabricators . | . . Repair Stations . | . . Recycling Units . | . . Scanalyzers . | . . Garrison Access . | . . Data Cores Recovered . | . . Used . | . . Hacking Detections 2 | . 2 Full Trace Events . | . . Feedback Events . | . . Feedback Blocked . | . . Robot Schematics Acquired . | . . Robots Built . | . . Authchips . | . . Time . | . . Total Robot Build Rating . | . . Part Schematics Acquired . | . . Parts Built . | . . Authchips . | . . Time . | . . Total Part Build Rating . | . . Parts Repaired . | . . Time . | . . Parts Recycled . | . . Recycled Matter . | . . Retrieved Matter . | . . Retrieved Components . | . . Parts Scanalyzed . | . . Part Schematics Acquired . | . . Parts Damaged . | . . Bothacking | -11 -10 ------------ Run | Yrd Mat Used RIF Installer . | . . Robots Hacked . | . . Non-combat . | . . Combat . | . . Robot Hacks Applied . | . . Relay Couplers Released . | . . Fabnet Peak Effective % . | . . Robots Rewired . | . . Allies Hacked . | . . Hacks Repelled . | . . Allies | -11 -10 -------- Run | Yrd Mat Total Allies . | . . Largest Group . | . . Highest-Rated Group . | . . Highest-Rated Ally . | . . Total Orders . | . . Ally Attacks . | . . Total Damage . | . . Kills . | . . Allies Corrupted . | . . Allies Melted . | . . Intel | -11 -10 ------- Run | Yrd Mat Active Infowar (turns) 755 | 171 584 Sensors 168 | . 168 Terrain 587 | 171 416 Robot Analysis Total . | . . Derelict Logs Recovered . | . . Drone Launches . | . . Drone Recoveries . | . . Exploration | -11 -10 ------------- Run | Yrd Mat Turns Passed 933 | 344 589 Spaces Moved 363 | 78 285 Core 11 | 8 3 Treads 90 | 70 20 Legs 262 | . 262 Wheels . | . . Hover . | . . Flight . | . . Fastest Speed 50 | 50 120 Average Speed 129 | 148 123 Slowest Speed 250 | 160 250 Overloaded Moves . | . . Propulsion Burnouts . | . . Robots Hopped . | . . Potential Cave-ins . | . . Cave-ins Triggered . | . . Exploration Rate (%) 22 | 6 38 Regions Visited 1 Branch Regions . Pre-discovered Areas . | . . Known Exits Taken . | . . Unknown Exits Taken 1 | 1 . Scrap Searched . | . . Spaces Dug . | . . Terrain Destroyed 1 | . 1 Melee . | . . Projectile 1 | . 1 AOE . | . . Terrain Rammed . | . . Walls Destroyed . | . . Machines Disabled . | . . Actions | -11 -10 --------- Run | Yrd Mat Total 677 | 266 411 Wait 164 | 148 16 Move 362 | 77 285 Hop . | . . Pick Up 23 | 14 9 Fast Attach 3 | . 3 Attach 13 | 7 6 Detach 1 | . 1 Swap 9 | . 9 Drop 11 | . 11 Fire 91 | 20 71 Melee . | . . Ram . | . . Kick . | . . Crush . | . . Escape Stasis . | . . Rewire . | . . Trap . | . . Miscellaneous . | . . Route ------- -11/Scrapyard -10/Materials (discovered 2 exits: [*Mat x2]) History --------- Turn | Location | Event 6 | -11/Scrapyard | Discovered new exit (range 16) 345 | -11/Scrapyard | Entered Materials 346 | -10/Materials | Build established: Mutant 600 | -10/Materials | Discovered new exit (range 15) 859 | -10/Materials | Discovered new exit (range 16) 920 | -10/Materials | Core integrity fell below 50% 930 | -10/Materials | Core integrity fell below 20% 934 | -10/Materials | Destroyed by G-47 Trooper with Particle Gun Last Messages --------------- A-02 Transporter destroyed. Triggered Alarm Trap. An alarm sounds. ALERT: Alarm triggered, dispatching investigation squad. K-01 Serf collects debris. U-05 Engineer lays Concrete. K-01 Serf destroyed. U-05 Engineer lays Concrete. G-47 Trooper suffers critical hit (Burn). K-01 Serf destroyed. Aluminum Leg destroyed. Lgt. Assault Rifle destroyed. Lgt. Ion Engine destroyed. Overheating: Sensor Array damaged (-2). Critical hit (Burn: +37). Mining Laser destroyed. Aluminum Leg destroyed. Sensor Array broken. Overheating: Short circuit. Particle Gun destroyed. Map ----- +----------------------------------------------------+ | #########+######## #??########?????????? | | ?????# #?## !/#??????????? ???????? | | ?#???#""" """ #?#T ! ! #? ##??????????????? | | #????#"Y """ #### # ???##??????? ???? | | ?????#""" """ #??# # ?#??????????????? | | ?????# #?## ! # ????????????????? | | ?????# """ ##?# !!= #????#???????????? | | ?#?#?# """ #??# !! # ##??????#?????????? | | ?????# """ #??###############?????#???????????? | | ??#??# #???#???#??????####????????#???????? | | ?????##########?#??#???????#?# ???? ???????????? | | ############################## ????????????????? | | # ## # ????????????????? | | # ## """ # ????????????????? | | # ## """ # ????????????????? | | ########### + ## """ # ????????????????? | | ?? #??# # ## # ????????????????? | | ?? #??# # ## # ????????????????? | | ??????????# ##############+######+###### #???? | | ??????????# g =! #??? | | ??????????# !g *%!=!!! < #??? | | ?"????????# g = !!%!! #??? | | ??????????####+######## gg########+######+#?????? | | ????????????# #??# ##?????????????????????? | | ????????????# """ #??# #??????????????????????? | | ????????????# """ #??# @#??????????????????????? | | ????????????# """ #??# #??????????????????????? | | ????????????# #??#k #??????????????????????? | | ????????????# "T" #??#t #??????????????????????? | | ????????????########??# #??????????????????????? | | ??????????????????????# #??????????????????????? | | ??????????????????????#t #??????????????????????? | | ??????????????????????# #??????????????????????? | | ??????????????????????# #??????????????????????? | | ??????????????????????# #??????????????????????? | | ??????????????????????# #??????????????????????? | | ??????????????????????# ???????????????????????? | | ??????????????????????# ???????????????????????? | | ?????????????????????? ???????????????????????? | | ?????????????????????? ???????????????????????? | | ??????????????????????? ???????????????????????? | | ?????????????????????????????????????????????????? | | ?????????????????????????????????????????????????? | | ?????????????????????????????????????????????????? | | ?????????????????????????????????????????????????? | | ?????????????????????????????????????????????????? | | ?????????????????????????????????????????????????? | | ?????????????????????????????????????????????????? | | ?????????????????????????????????????????????????? | | ?????????????????????????????????????????????????? | +----------------------------------------------------+ Best States ------------- Heat Dissipation 25 Energy Generation 10 Energy Capacity 125 Matter Stores 300 Matter Capacity 300 Sight Range 16 Robot Scan Range 14 Terrain Scan Range 16 Terrain Scan Density 10 Evasion (%) 55 Recoil Reduction 2 Item Schematics ----------------- None Robot Schematics ------------------ None Fabricated ------------ Nothing Repaired ---------- Nothing Alien Tech Used ----------------- None Achievements -------------- None Challenges ------------ None Game ------ Seed HardcellShadingWand Manual? 0 Play Time 00:09:41 Cumulative 46.7 hours Start 2025.09.05 @ 17:35:55 End 2025.09.05 @ 18:28:47 Sessions 1 Manual Loads 0 Difficulty Rogue Special Mode None Game No. 33 Rogue 33 Adventurer 0 Explorer 0 Win Type - Total 0 Types 0/0/0/0/0/0/0/0/0/0 Lore% 19 Gallery% 38 Achievement% 32 Wizard Run 0 Options --------- Layout 0 ASCII 0 Keyboard 0 Movement Arrows Keybinds 0 Fullscreen 1 Font 12/Smallcaps Map View 38x28 Zoom Use 99% Tactical HUD 0 Map Filters NONE Filters NONE Steam SD RUN: 56216f87-8c34-47d5-b5c6-14b516066152